[Event "***Titled Tuesday 3|2 Blitz"]
[Site "Chess.com"]
[Date "2017.02.07"]
[Round "7"]
[White "PelinGorki"]
[Black "jcibarra"]
[Result "1/2-1/2"]
[WhiteElo "2394"]
[BlackElo "2635"]
[TimeControl "180+2"]
[EndTime "14:43:12 PST"]
[Termination "Game drawn - insufficient material"]

1. e4 {[%clk 0:03:02]} 1... c5 {[%clk 0:02:56.2]} 2. Nf3 {[%clk 0:03:01.5]} 2...
d6 {[%clk 0:02:57.4]} 3. d4 {[%clk 0:03:03.1]} 3... cxd4 {[%clk 0:02:59.3]} 4.
Nxd4 {[%clk 0:03:03.9]} 4... Nf6 {[%clk 0:03:00.8]} 5. Nc3 {[%clk 0:03:05.1]}
5... a6 {[%clk 0:03:01.3]} 6. Bg5 {[%clk 0:03:06]} 6... e6 {[%clk 0:03:02.1]} 7.
f4 {[%clk 0:03:06.8]} 7... Be7 {[%clk 0:03:03]} 8. Qf3 {[%clk 0:03:07.7]} 8...
Qa5 {[%clk 0:03:03.7]} 9. O-O-O {[%clk 0:03:04.9]} 9... Bd7 {[%clk 0:03:04.5]}
10. Kb1 {[%clk 0:02:59.9]} 10... Nc6 {[%clk 0:03:04.5]} 11. Nb3 {[%clk
0:02:58.9]} 11... Qc7 {[%clk 0:03:05.5]} 12. g4 {[%clk 0:02:56.9]} 12... h6
{[%clk 0:03:02.2]} 13. Bxf6 {[%clk 0:02:55.6]} 13... Bxf6 {[%clk 0:03:02]} 14.
h4 {[%clk 0:02:55.5]} 14... O-O-O {[%clk 0:03:03.2]} 15. g5 {[%clk 0:02:52.9]}
15... Be7 {[%clk 0:03:04.5]} 16. Be2 {[%clk 0:02:49.7]} 16... Kb8 {[%clk
0:03:02]} 17. Qg3 {[%clk 0:02:38.7]} 17... hxg5 {[%clk 0:02:54.6]} 18. hxg5
{[%clk 0:02:38.9]} 18... g6 {[%clk 0:02:55.3]} 19. Nd2 {[%clk 0:02:32.1]} 19...
Rc8 {[%clk 0:02:39.6]} 20. Nc4 {[%clk 0:02:28]} 20... Na5 {[%clk 0:02:31.8]} 21.
Ne3 {[%clk 0:02:23.7]} 21... Qb6 {[%clk 0:02:13.8]} 22. Ng4 {[%clk 0:02:03.1]}
22... Rxh1 {[%clk 0:01:48.2]} 23. Rxh1 {[%clk 0:02:05]} 23... Nc4 {[%clk
0:01:50.1]} 24. Bxc4 {[%clk 0:01:57.3]} 24... Rxc4 {[%clk 0:01:52]} 25. Kc1
{[%clk 0:01:51.3]} 25... Ka7 {[%clk 0:01:21.2]} 26. Rh7 {[%clk 0:01:48.2]} 26...
Be8 {[%clk 0:01:19.1]} 27. Ne3 {[%clk 0:01:43.8]} 27... Rc8 {[%clk 0:01:16.8]}
28. Ned1 {[%clk 0:01:41.4]} 28... Qd4 {[%clk 0:01:13.2]} 29. Qe3 {[%clk
0:01:39.2]} 29... Qxe3+ {[%clk 0:01:08.2]} 30. Nxe3 {[%clk 0:01:41.1]} 30... b5
{[%clk 0:01:05]} 31. Kd2 {[%clk 0:01:37.6]} 31... b4 {[%clk 0:00:57.5]} 32. Ne2
{[%clk 0:01:39.1]} 32... Kb6 {[%clk 0:00:55.2]} 33. Nd4 {[%clk 0:01:39.7]} 33...
Bd8 {[%clk 0:00:51.7]} 34. c3 {[%clk 0:01:28.2]} 34... bxc3+ {[%clk 0:00:50.1]}
35. bxc3 {[%clk 0:01:30.1]} 35... a5 {[%clk 0:00:48.4]} 36. Kd3 {[%clk
0:01:28.4]} 36... a4 {[%clk 0:00:47.3]} 37. c4 {[%clk 0:01:27.2]} 37... Kc5
{[%clk 0:00:46.7]} 38. Ndc2 {[%clk 0:01:25.8]} 38... Ba5 {[%clk 0:00:43.7]} 39.
Ng4 {[%clk 0:01:23.8]} 39... d5 {[%clk 0:00:40.5]} 40. cxd5 {[%clk 0:01:21.4]}
40... exd5 {[%clk 0:00:42.4]} 41. Nf6 {[%clk 0:01:21.4]} 41... Bb5+ {[%clk
0:00:40.7]} 42. Ke3 {[%clk 0:01:22.9]} 42... Bc4 {[%clk 0:00:36.3]} 43. a3
{[%clk 0:01:16.2]} 43... Bb3 {[%clk 0:00:32.8]} 44. Nd4 {[%clk 0:01:17.6]} 44...
Bd2+ {[%clk 0:00:27]} 45. Kxd2 {[%clk 0:01:15.9]} 45... Kxd4 {[%clk 0:00:28.9]}
46. exd5 {[%clk 0:01:16.2]} 46... Rc2+ {[%clk 0:00:28.9]} 47. Ke1 {[%clk
0:01:17]} 47... Ke3 {[%clk 0:00:27.5]} 48. Rh3+ {[%clk 0:01:18]} 48... Kxf4
{[%clk 0:00:26.9]} 49. d6 {[%clk 0:01:16.9]} 49... Rc8 {[%clk 0:00:24.3]} 50. d7
{[%clk 0:01:18.3]} 50... Rd8 {[%clk 0:00:24.1]} 51. Kd2 {[%clk 0:01:07.7]} 51...
Be6 {[%clk 0:00:23.9]} 52. Rd3 {[%clk 0:01:08.9]} 52... Kxg5 {[%clk 0:00:22.7]}
53. Ne4+ {[%clk 0:01:10.1]} 53... Kf4 {[%clk 0:00:22.2]} 54. Nc5 {[%clk
0:01:10.5]} 54... Ke5 {[%clk 0:00:19.8]} 55. Kc3 {[%clk 0:01:07.8]} 55... g5
{[%clk 0:00:19.4]} 56. Kb4 {[%clk 0:01:07.4]} 56... g4 {[%clk 0:00:19.3]} 57.
Kxa4 {[%clk 0:01:04.7]} 57... Bf5 {[%clk 0:00:19.9]} 58. Rd2 {[%clk 0:01:06.2]}
58... Kf4 {[%clk 0:00:20]} 59. Kb5 {[%clk 0:01:02.6]} 59... g3 {[%clk
0:00:19.3]} 60. Kc6 {[%clk 0:01:03.5]} 60... Ke3 {[%clk 0:00:16]} 61. Rg2 {[%clk
0:00:58.6]} 61... Kf3 {[%clk 0:00:14.4]} 62. Rxg3+ {[%clk 0:01:00]} 62... Kxg3
{[%clk 0:00:16.3]} 63. Kc7 {[%clk 0:01:01.3]} 63... Rxd7+ {[%clk 0:00:14.3]} 64.
Nxd7 {[%clk 0:01:02.5]} 64... Bc2 {[%clk 0:00:15.4]} 65. Ne5 {[%clk 0:01:00.1]}
65... f5 {[%clk 0:00:16.2]} 66. Kd6 {[%clk 0:00:58.8]} 66... f4 {[%clk
0:00:17.4]} 67. Kd5 {[%clk 0:00:59]} 67... Bd1 {[%clk 0:00:18]} 68. Kd4 {[%clk
0:00:59.5]} 68... f3 {[%clk 0:00:18.9]} 69. Nxf3 {[%clk 0:01:00]} 69... Kxf3
{[%clk 0:00:20.8]} 70. a4 {[%clk 0:01:01.1]} 70... Bxa4 {[%clk 0:00:22.4]}
1/2-1/2

[Event "***Titled Tuesday 3|2 Blitz"]
[Site "Chess.com"]
[Date "2017.02.07"]
[Round "7"]
[White "SavelijTartakover"]
[Black "Astaneh"]
[Result "0-1"]
[WhiteElo "2531"]
[BlackElo "2502"]
[TimeControl "180+2"]
[EndTime "14:43:17 PST"]
[Termination "Astaneh won by resignation"]

1. d4 {[%clk 0:03:02]} 1... Nf6 {[%clk 0:02:57.9]} 2. c4 {[%clk 0:03:02.2]} 2...
g6 {[%clk 0:02:47.9]} 3. Nc3 {[%clk 0:03:01.8]} 3... d5 {[%clk 0:02:48.7]} 4. e3
{[%clk 0:03:02.4]} 4... Bg7 {[%clk 0:02:37]} 5. Qb3 {[%clk 0:03:03.4]} 5... e6
{[%clk 0:02:30]} 6. Qa3 {[%clk 0:03:03.5]} 6... Bf8 {[%clk 0:02:29.6]} 7. Qa4+
{[%clk 0:03:03.9]} 7... c6 {[%clk 0:02:27.1]} 8. Nf3 {[%clk 0:03:01.3]} 8... Bg7
{[%clk 0:02:25.8]} 9. Be2 {[%clk 0:02:59.9]} 9... O-O {[%clk 0:02:26.8]} 10. O-O
{[%clk 0:03:00.5]} 10... a6 {[%clk 0:02:26.9]} 11. Qc2 {[%clk 0:02:57.2]} 11...
Nbd7 {[%clk 0:02:26]} 12. Rd1 {[%clk 0:02:57.5]} 12... Re8 {[%clk 0:02:16.7]}
13. b3 {[%clk 0:02:57.8]} 13... b6 {[%clk 0:02:10.4]} 14. Bb2 {[%clk 0:02:53]}
14... Bb7 {[%clk 0:02:11.4]} 15. Rac1 {[%clk 0:02:54.4]} 15... Qe7 {[%clk
0:02:10.6]} 16. Qb1 {[%clk 0:02:52.5]} 16... Rac8 {[%clk 0:02:03.2]} 17. a3
{[%clk 0:02:50.4]} 17... c5 {[%clk 0:02:01.9]} 18. cxd5 {[%clk 0:02:50.5]} 18...
exd5 {[%clk 0:01:56.1]} 19. Qa1 {[%clk 0:02:45.3]} 19... c4 {[%clk 0:01:54.6]}
20. bxc4 {[%clk 0:02:40.3]} 20... dxc4 {[%clk 0:01:55.6]} 21. d5 {[%clk
0:02:40.6]} 21... b5 {[%clk 0:01:53.2]} 22. Nd4 {[%clk 0:02:28.9]} 22... Nc5
{[%clk 0:01:46.1]} 23. Rd2 {[%clk 0:02:24.8]} 23... Nxd5 {[%clk 0:01:34.4]} 24.
Nxd5 {[%clk 0:02:13.5]} 24... Bxd5 {[%clk 0:01:35.2]} 25. Rcd1 {[%clk
0:01:50.3]} 25... Bxd4 {[%clk 0:00:50.8]} 26. Bxd4 {[%clk 0:01:35]} 26... Nb3
{[%clk 0:00:52]} 27. Bf6 {[%clk 0:01:34.6]} 27... Qe4 {[%clk 0:00:32.1]} 28. Bf3
{[%clk 0:01:27.7]} 28... Qxf3 {[%clk 0:00:27.3]} 29. gxf3 {[%clk 0:01:26.5]}
29... Nxa1 {[%clk 0:00:28.9]} 30. Rxd5 {[%clk 0:01:23]} 30... Nb3 {[%clk
0:00:25.3]} 31. Bc3 {[%clk 0:01:22.7]} 31... Nc5 {[%clk 0:00:21]} 32. Rd6 {[%clk
0:01:11.4]} 32... f5 {[%clk 0:00:21.3]} 33. h4 {[%clk 0:01:09.3]} 33... Re6
{[%clk 0:00:20.7]} 34. Bb4 {[%clk 0:00:46.8]} 34... Kf7 {[%clk 0:00:12.3]} 35.
h5 {[%clk 0:00:45.1]} 35... Rc7 {[%clk 0:00:09.6]} 36. Kf1 {[%clk 0:00:32.9]}
36... Nd3 {[%clk 0:00:10.8]} 37. R6xd3 {[%clk 0:00:28.2]} 37... cxd3 {[%clk
0:00:11.6]} 38. Rxd3 {[%clk 0:00:30.1]} 38... Rec6 {[%clk 0:00:09.8]} 39. Kg2
{[%clk 0:00:28.6]} 39... Ra7 {[%clk 0:00:10.9]} 40. h6 {[%clk 0:00:20.6]} 40...
a5 {[%clk 0:00:10.4]} 41. Bc3 {[%clk 0:00:21.6]} 41... Ke6 {[%clk 0:00:10.5]}
42. Kg3 {[%clk 0:00:17.8]} 42... Rd6 {[%clk 0:00:09]} 43. Bd4 {[%clk 0:00:18.7]}
43... Rc7 {[%clk 0:00:09.1]} 44. Rb3 {[%clk 0:00:19]} 44... Rd5 {[%clk
0:00:08.6]} 45. Kf4 {[%clk 0:00:19.8]} 45... Rc4 {[%clk 0:00:09.7]} 46. Kg5
{[%clk 0:00:20.7]} 46... b4 {[%clk 0:00:09]} 47. axb4 {[%clk 0:00:21.8]} 47...
Rxb4 {[%clk 0:00:10.9]} 48. Rc3 {[%clk 0:00:21.3]} 48... a4 {[%clk 0:00:11]} 49.
Rc7 {[%clk 0:00:21.1]} 49... Rd7 {[%clk 0:00:12.3]} 50. Rc6+ {[%clk 0:00:21.3]}
50... Rd6 {[%clk 0:00:12.5]} 51. Rc7 {[%clk 0:00:22.1]} 51... Rd7 {[%clk
0:00:14]} 52. Rc6+ {[%clk 0:00:23.1]} 52... Kd5 {[%clk 0:00:15.6]} 53. Ra6
{[%clk 0:00:22.4]} 53... Rdb7 {[%clk 0:00:14.9]} 54. Kf6 {[%clk 0:00:19.7]}
54... Kc4 {[%clk 0:00:15.6]} 55. f4 {[%clk 0:00:16.7]} 55... Kb3 {[%clk
0:00:16.5]} 56. Kg5 {[%clk 0:00:15.5]} 56... a3 {[%clk 0:00:17.9]} 57. Bg7
{[%clk 0:00:13.9]} 57... Ra4 {[%clk 0:00:18.8]} 58. Rd6 {[%clk 0:00:13.3]} 58...
a2 {[%clk 0:00:19.8]} 59. Rd8 {[%clk 0:00:13.3]} 59... Kc2 {[%clk 0:00:20.5]}
60. Rh8 {[%clk 0:00:12.3]} 60... a1=Q {[%clk 0:00:20.7]} 61. Bxa1 {[%clk
0:00:11.7]} 61... Rxa1 {[%clk 0:00:22.6]} 62. Rd8 {[%clk 0:00:11.1]} 62... Rd1
{[%clk 0:00:23]} 63. Rg8 {[%clk 0:00:11.1]} 63... Rf7 {[%clk 0:00:22.6]} 64. Rg7
{[%clk 0:00:11.8]} 64... Rdd7 {[%clk 0:00:23.3]} 65. Rg8 {[%clk 0:00:12.8]}
65... Kd2 {[%clk 0:00:24.5]} 0-1

[Event "***Titled Tuesday 3|2 Blitz"]
[Site "Chess.com"]
[Date "2017.02.07"]
[Round "7"]
[White "Feegus"]
[Black "vellottiwizard"]
[Result "1/2-1/2"]
[WhiteElo "2378"]
[BlackElo "2533"]
[TimeControl "180+2"]
[EndTime "14:43:17 PST"]
[Termination "Game drawn - insufficient material"]

1. Nf3 {[%clk 0:03:02]} 1... Nf6 {[%clk 0:02:58.7]} 2. g3 {[%clk 0:03:03.1]}
2... b5 {[%clk 0:02:59.4]} 3. Bg2 {[%clk 0:03:04]} 3... Bb7 {[%clk 0:03:00.9]}
4. O-O {[%clk 0:03:05.9]} 4... e6 {[%clk 0:03:01.8]} 5. a4 {[%clk 0:03:07.3]}
5... a6 {[%clk 0:03:01.3]} 6. d4 {[%clk 0:03:07.3]} 6... Be7 {[%clk 0:03:02.1]}
7. axb5 {[%clk 0:03:01.9]} 7... axb5 {[%clk 0:03:03.1]} 8. Rxa8 {[%clk
0:03:03.8]} 8... Bxa8 {[%clk 0:03:05]} 9. Qd3 {[%clk 0:03:05.3]} 9... b4 {[%clk
0:03:05.3]} 10. Nbd2 {[%clk 0:02:58.2]} 10... O-O {[%clk 0:03:06]} 11. e4 {[%clk
0:02:58.5]} 11... d5 {[%clk 0:03:07.5]} 12. e5 {[%clk 0:02:59.2]} 12... Nfd7
{[%clk 0:03:07.2]} 13. h4 {[%clk 0:02:54.8]} 13... c5 {[%clk 0:03:04.6]} 14. c3
{[%clk 0:02:54.6]} 14... Bb7 {[%clk 0:03:03.3]} 15. Re1 {[%clk 0:02:55.4]} 15...
Nc6 {[%clk 0:03:02]} 16. Nf1 {[%clk 0:02:53.7]} 16... Re8 {[%clk 0:02:58.9]} 17.
h5 {[%clk 0:02:53.9]} 17... h6 {[%clk 0:02:52.5]} 18. N1h2 {[%clk 0:02:54.2]}
18... Bf8 {[%clk 0:02:36.7]} 19. Ng4 {[%clk 0:02:53.5]} 19... Qa5 {[%clk
0:02:33.2]} 20. Bh3 {[%clk 0:02:16.7]} 20... Ne7 {[%clk 0:01:41.8]} 21. Ne3
{[%clk 0:02:08.1]} 21... Ba6 {[%clk 0:01:36]} 22. Qd2 {[%clk 0:01:59.9]} 22...
Nc6 {[%clk 0:01:33.3]} 23. Ng4 {[%clk 0:01:00.6]} 23... bxc3 {[%clk 0:01:30.4]}
24. bxc3 {[%clk 0:01:01.5]} 24... cxd4 {[%clk 0:01:25.7]} 25. cxd4 {[%clk
0:01:02.1]} 25... Qxd2 {[%clk 0:01:04.6]} 26. Bxd2 {[%clk 0:01:02.5]} 26... Bd3
{[%clk 0:00:57.1]} 27. Rc1 {[%clk 0:00:57.5]} 27... Ndb8 {[%clk 0:00:40.3]} 28.
Ne3 {[%clk 0:00:53.1]} 28... Be4 {[%clk 0:00:38.8]} 29. Ne1 {[%clk 0:00:49.3]}
29... Nxd4 {[%clk 0:00:38.5]} 30. Rc7 {[%clk 0:00:41.5]} 30... Nf3+ {[%clk
0:00:30.4]} 31. Nxf3 {[%clk 0:00:40.7]} 31... Bxf3 {[%clk 0:00:32.3]} 32. Bg4
{[%clk 0:00:42.4]} 32... Bxg4 {[%clk 0:00:29.1]} 33. Nxg4 {[%clk 0:00:43.6]}
33... Rd8 {[%clk 0:00:24.3]} 34. Ba5 {[%clk 0:00:37.1]} 34... Re8 {[%clk
0:00:21.2]} 35. Bd2 {[%clk 0:00:35]} 35... Be7 {[%clk 0:00:22.3]} 36. f4 {[%clk
0:00:21.3]} 36... Kf8 {[%clk 0:00:19.9]} 37. Be3 {[%clk 0:00:20.4]} 37... Na6
{[%clk 0:00:20.4]} 38. Ra7 {[%clk 0:00:20.4]} 38... Nb4 {[%clk 0:00:17.6]} 39.
Kf1 {[%clk 0:00:16.8]} 39... Rc8 {[%clk 0:00:18]} 40. Ke2 {[%clk 0:00:15.6]}
40... Nc6 {[%clk 0:00:18.3]} 41. Rb7 {[%clk 0:00:15.3]} 41... Na5 {[%clk
0:00:17.8]} 42. Ra7 {[%clk 0:00:14.7]} 42... Nc6 {[%clk 0:00:19.1]} 43. Rb7
{[%clk 0:00:15.3]} 43... Ke8 {[%clk 0:00:20.7]} 44. Nf2 {[%clk 0:00:13.9]} 44...
Na5 {[%clk 0:00:20.3]} 45. Ra7 {[%clk 0:00:14.7]} 45... Nc6 {[%clk 0:00:21.9]}
46. Rb7 {[%clk 0:00:15.5]} 46... Rb8 {[%clk 0:00:23]} 47. Rxb8+ {[%clk
0:00:13.9]} 47... Nxb8 {[%clk 0:00:23.3]} 48. Kd3 {[%clk 0:00:14.4]} 48... Nc6
{[%clk 0:00:24.2]} 49. g4 {[%clk 0:00:14.4]} 49... f6 {[%clk 0:00:19.8]} 50.
exf6 {[%clk 0:00:15.1]} 50... Bxf6 {[%clk 0:00:20.3]} 51. Nh3 {[%clk 0:00:15.8]}
51... Be7 {[%clk 0:00:20.1]} 52. g5 {[%clk 0:00:16.6]} 52... Bf8 {[%clk
0:00:18]} 53. Nf2 {[%clk 0:00:14.8]} 53... Ne7 {[%clk 0:00:14.7]} 54. Ng4 {[%clk
0:00:14.8]} 54... Nf5 {[%clk 0:00:15.9]} 55. Bd2 {[%clk 0:00:16.2]} 55... Kd7
{[%clk 0:00:16.8]} 56. Ne5+ {[%clk 0:00:17.1]} 56... Kc7 {[%clk 0:00:17.8]} 57.
Ng6 {[%clk 0:00:18.5]} 57... Bd6 {[%clk 0:00:18.9]} 58. Bc3 {[%clk 0:00:19]}
58... Kd7 {[%clk 0:00:18.7]} 59. Bxg7 {[%clk 0:00:19.4]} 59... Bxf4 {[%clk
0:00:12.2]} 60. Nxf4 {[%clk 0:00:18.1]} 60... hxg5 {[%clk 0:00:12.7]} 61. h6
{[%clk 0:00:19.4]} 61... Nxh6 {[%clk 0:00:13.8]} 62. Bxh6 {[%clk 0:00:20.1]}
62... gxf4 {[%clk 0:00:15.2]} 63. Bxf4 {[%clk 0:00:21.4]} 63... Kc6 {[%clk
0:00:17.1]} 64. Kd4 {[%clk 0:00:22.7]} 64... e5+ {[%clk 0:00:18.3]} 65. Bxe5
{[%clk 0:00:23.5]} 65... Kb5 {[%clk 0:00:20.2]} 66. Kxd5 {[%clk 0:00:24.4]}
1/2-1/2

[Event "***Titled Tuesday 3|2 Blitz"]
[Site "Chess.com"]
[Date "2017.02.07"]
[Round "7"]
[White "Incognito_Knight"]
[Black "Hamisandwich"]
[Result "1-0"]
[WhiteElo "2312"]
[BlackElo "2416"]
[TimeControl "180+2"]
[EndTime "14:43:27 PST"]
[Termination "Incognito_Knight won by resignation"]

1. e4 {[%clk 0:03:02]} 1... d6 {[%clk 0:03:00.9]} 2. d4 {[%clk 0:03:02.8]} 2...
Nf6 {[%clk 0:03:02.8]} 3. Nc3 {[%clk 0:03:03.5]} 3... e5 {[%clk 0:03:04.3]} 4.
Nf3 {[%clk 0:03:03.3]} 4... Nbd7 {[%clk 0:03:05]} 5. Bc4 {[%clk 0:03:02.6]} 5...
Be7 {[%clk 0:03:05.5]} 6. O-O {[%clk 0:03:03.6]} 6... O-O {[%clk 0:03:06.6]} 7.
Re1 {[%clk 0:03:04.9]} 7... b6 {[%clk 0:03:07.1]} 8. d5 {[%clk 0:02:57.6]} 8...
a6 {[%clk 0:03:07.4]} 9. a4 {[%clk 0:02:57]} 9... Re8 {[%clk 0:02:58.5]} 10. Bf1
{[%clk 0:02:53.7]} 10... Nf8 {[%clk 0:02:59.4]} 11. a5 {[%clk 0:02:49.6]} 11...
b5 {[%clk 0:02:59.6]} 12. Na2 {[%clk 0:02:50.5]} 12... Ng6 {[%clk 0:02:52.1]}
13. Nb4 {[%clk 0:02:50]} 13... Bd7 {[%clk 0:02:42.6]} 14. c4 {[%clk 0:02:49.8]}
14... Qb8 {[%clk 0:02:37]} 15. Nc6 {[%clk 0:02:06.5]} 15... Bxc6 {[%clk
0:02:29.2]} 16. dxc6 {[%clk 0:02:08.4]} 16... b4 {[%clk 0:02:22.7]} 17. c5
{[%clk 0:02:09.5]} 17... dxc5 {[%clk 0:02:17.9]} 18. Bc4 {[%clk 0:02:10.1]}
18... Bd6 {[%clk 0:02:13.1]} 19. Qb3 {[%clk 0:01:50.1]} 19... Rf8 {[%clk
0:02:13]} 20. Bg5 {[%clk 0:01:39]} 20... Nh5 {[%clk 0:02:13.3]} 21. g3 {[%clk
0:01:32.4]} 21... Qe8 {[%clk 0:02:12]} 22. Rac1 {[%clk 0:01:25.4]} 22... Kh8
{[%clk 0:02:10.8]} 23. Be3 {[%clk 0:01:21.5]} 23... h6 {[%clk 0:01:59.3]} 24.
Bd5 {[%clk 0:01:18.9]} 24... Qe7 {[%clk 0:01:55.5]} 25. Nd2 {[%clk 0:00:59.3]}
25... Nf6 {[%clk 0:01:51.3]} 26. Qc4 {[%clk 0:00:40.3]} 26... Rfb8 {[%clk
0:01:22.9]} 27. Bxf7 {[%clk 0:00:34.6]} 27... Nf4 {[%clk 0:01:24]} 28. Bxf4
{[%clk 0:00:25.9]} 28... exf4 {[%clk 0:01:25.9]} 29. e5 {[%clk 0:00:27.3]} 29...
Bxe5 {[%clk 0:01:16.8]} 30. gxf4 {[%clk 0:00:28]} 30... Ng4 {[%clk 0:01:13.4]}
31. fxe5 {[%clk 0:00:27.1]} 31... Qh4 {[%clk 0:01:14.1]} 32. Qf4 {[%clk
0:00:26.1]} 32... Rd8 {[%clk 0:01:04.1]} 33. Ne4 {[%clk 0:00:14.1]} 33... Rd3
{[%clk 0:00:54.1]} 34. Be6 {[%clk 0:00:14.9]} 34... Nxe5 {[%clk 0:00:31.8]} 35.
Qxh4 {[%clk 0:00:15.1]} 35... Nf3+ {[%clk 0:00:33]} 36. Kf1 {[%clk 0:00:15.8]}
36... Nxh4 {[%clk 0:00:34.9]} 37. Nxc5 {[%clk 0:00:16.8]} 37... Rd6 {[%clk
0:00:32.5]} 38. Bd7 {[%clk 0:00:17.2]} 38... Nf3 {[%clk 0:00:33.4]} 39. Re8+
{[%clk 0:00:16.7]} 39... Rxe8 {[%clk 0:00:34]} 40. Bxe8 {[%clk 0:00:18.6]} 40...
Nxh2+ {[%clk 0:00:34.5]} 41. Ke2 {[%clk 0:00:19]} 41... Rd5 {[%clk 0:00:33.9]}
42. Bd7 {[%clk 0:00:18.3]} 42... Re5+ {[%clk 0:00:34.9]} 43. Kd3 {[%clk
0:00:18.8]} 43... Ng4 {[%clk 0:00:35.2]} 44. Nxa6 {[%clk 0:00:18.7]} 44... Rxa5
{[%clk 0:00:34.2]} 45. Bxg4 {[%clk 0:00:19.1]} 45... Rxa6 {[%clk 0:00:35.2]} 46.
Bd7 {[%clk 0:00:20.2]} 46... Ra5 {[%clk 0:00:32.5]} 47. Kc4 {[%clk 0:00:20.1]}
47... h5 {[%clk 0:00:29.8]} 48. Kxb4 {[%clk 0:00:20.8]} 48... Re5 {[%clk
0:00:25.9]} 49. Rc5 {[%clk 0:00:19.9]} 49... Re4+ {[%clk 0:00:27.3]} 50. Rc4
{[%clk 0:00:20.8]} 50... Re2 {[%clk 0:00:28.4]} 51. Ka3 {[%clk 0:00:19]} 51...
Rxf2 {[%clk 0:00:28.4]} 52. b4 {[%clk 0:00:20.2]} 52... Rf1 {[%clk 0:00:26.1]}
53. b5 {[%clk 0:00:20.6]} 53... Ra1+ {[%clk 0:00:23.2]} 54. Kb4 {[%clk
0:00:20.6]} 54... Rb1+ {[%clk 0:00:23.7]} 55. Kc5 {[%clk 0:00:21.9]} 55... g5
{[%clk 0:00:25]} 56. Re4 {[%clk 0:00:19]} 56... g4 {[%clk 0:00:23]} 57. Bxg4
{[%clk 0:00:19.3]} 57... hxg4 {[%clk 0:00:24.9]} 58. Rxg4 {[%clk 0:00:20.8]}
58... Rc1+ {[%clk 0:00:25.9]} 59. Kd5 {[%clk 0:00:22]} 59... Rd1+ {[%clk
0:00:19.4]} 60. Ke6 {[%clk 0:00:23]} 60... Rd6+ {[%clk 0:00:20.3]} 61. Ke7
{[%clk 0:00:24.2]} 61... Rd5 {[%clk 0:00:21.8]} 62. b6 {[%clk 0:00:18.5]} 62...
cxb6 {[%clk 0:00:21.6]} 63. c7 {[%clk 0:00:17.1]} 1-0

[Event "***Titled Tuesday 3|2 Blitz"]
[Site "Chess.com"]
[Date "2017.02.07"]
[Round "8"]
[White "GM_dmitrij"]
[Black "EmeseBalogh"]
[Result "1-0"]
[WhiteElo "2460"]
[BlackElo "1998"]
[TimeControl "180+2"]
[EndTime "14:54:33 PST"]
[Termination "GM_dmitrij won by resignation"]

1. e4 {[%clk 0:03:02]} 1... d5 {[%clk 0:02:59.6]} 2. exd5 {[%clk 0:03:02.1]}
2... Qxd5 {[%clk 0:02:59.5]} 3. Nc3 {[%clk 0:03:03.2]} 3... Qd6 {[%clk
0:03:00.8]} 4. d4 {[%clk 0:03:04.4]} 4... c6 {[%clk 0:03:01.9]} 5. Nf3 {[%clk
0:03:05.7]} 5... Nf6 {[%clk 0:03:03]} 6. Ne5 {[%clk 0:03:05.7]} 6... Bf5 {[%clk
0:03:02.8]} 7. Nc4 {[%clk 0:03:02.8]} 7... Qd8 {[%clk 0:03:03]} 8. Bg5 {[%clk
0:02:54.1]} 8... e6 {[%clk 0:03:03.4]} 9. Qd2 {[%clk 0:02:54.5]} 9... Be7 {[%clk
0:03:04]} 10. O-O-O {[%clk 0:02:54.7]} 10... Nbd7 {[%clk 0:03:01.9]} 11. f3
{[%clk 0:02:55.8]} 11... Nb6 {[%clk 0:03:01.8]} 12. g4 {[%clk 0:02:54.9]} 12...
Bg6 {[%clk 0:03:02]} 13. Ne5 {[%clk 0:02:55.4]} 13... Nbd5 {[%clk 0:02:47.9]}
14. h4 {[%clk 0:02:51.3]} 14... h6 {[%clk 0:02:02.7]} 15. Nxg6 {[%clk 0:02:51]}
15... fxg6 {[%clk 0:02:04.6]} 16. Be3 {[%clk 0:02:49.8]} 16... Qb6 {[%clk
0:01:34.4]} 17. Qd3 {[%clk 0:02:39.4]} 17... O-O-O {[%clk 0:01:29.4]} 18. Bd2
{[%clk 0:02:39.1]} 18... Bb4 {[%clk 0:01:14]} 19. Nxd5 {[%clk 0:02:36]} 19...
Nxd5 {[%clk 0:01:03.7]} 20. c3 {[%clk 0:02:33.4]} 20... Bd6 {[%clk 0:00:57.4]}
21. Qxg6 {[%clk 0:02:34.3]} 21... Nf4 {[%clk 0:00:57.6]} 22. Qe4 {[%clk
0:02:33.9]} 22... Rhf8 {[%clk 0:00:55.8]} 23. Bc4 {[%clk 0:02:34]} 23... e5
{[%clk 0:00:55.2]} 24. dxe5 {[%clk 0:02:31.2]} 24... Ba3 {[%clk 0:00:38.7]} 25.
bxa3 {[%clk 0:02:27.1]} 25... g5 {[%clk 0:00:35.4]} 26. hxg5 {[%clk 0:02:25.8]}
26... hxg5 {[%clk 0:00:37.3]} 27. Kc2 {[%clk 0:02:20.3]} 27... Qa5 {[%clk
0:00:34.9]} 28. e6 {[%clk 0:02:16.6]} 28... Rfe8 {[%clk 0:00:35]} 29. Bxf4
{[%clk 0:02:14.1]} 29... gxf4 {[%clk 0:00:35.6]} 30. e7 {[%clk 0:02:15.3]} 30...
Rxd1 {[%clk 0:00:32.7]} 31. Rxd1 {[%clk 0:02:15.8]} 31... Qxa3 {[%clk
0:00:33.8]} 32. Qf5+ {[%clk 0:02:05.5]} 32... Kc7 {[%clk 0:00:34]} 33. Qxf4+
{[%clk 0:02:06.7]} 33... Kb6 {[%clk 0:00:34.4]} 34. Qd4+ {[%clk 0:02:06.5]} 1-0

[Event "***Titled Tuesday 3|2 Blitz"]
[Site "Chess.com"]
[Date "2017.02.07"]
[Round "8"]
[White "Iball95"]
[Black "salomez"]
[Result "1-0"]
[WhiteElo "2405"]
[BlackElo "2146"]
[TimeControl "180+2"]
[EndTime "14:55:10 PST"]
[Termination "Iball95 won by checkmate"]

1. c4 {[%clk 0:03:02]} 1... e5 {[%clk 0:03:00]} 2. Nc3 {[%clk 0:02:59.4]} 2...
Bb4 {[%clk 0:03:00.2]} 3. Nd5 {[%clk 0:02:58.8]} 3... Bc5 {[%clk 0:02:59.6]} 4.
Nf3 {[%clk 0:02:57.2]} 4... c6 {[%clk 0:03:00.5]} 5. Nc3 {[%clk 0:02:57]} 5...
Qe7 {[%clk 0:02:58.6]} 6. e3 {[%clk 0:02:54.7]} 6... Nf6 {[%clk 0:02:57.5]} 7.
Nxe5 {[%clk 0:02:49.1]} 7... Qxe5 {[%clk 0:02:55.1]} 8. d4 {[%clk 0:02:49.8]}
8... Bxd4 {[%clk 0:02:53.5]} 9. Qxd4 {[%clk 0:02:51.7]} 9... Qxd4 {[%clk
0:02:51.5]} 10. exd4 {[%clk 0:02:53.6]} 10... O-O {[%clk 0:02:52.9]} 11. Be2
{[%clk 0:02:50.1]} 11... d5 {[%clk 0:02:49.7]} 12. cxd5 {[%clk 0:02:52]} 12...
cxd5 {[%clk 0:02:50.8]} 13. Bg5 {[%clk 0:02:52]} 13... Nc6 {[%clk 0:02:50.4]}
14. Bxf6 {[%clk 0:02:52.7]} 14... gxf6 {[%clk 0:02:50.9]} 15. O-O-O {[%clk
0:02:54.1]} 15... Be6 {[%clk 0:02:49.4]} 16. Bf3 {[%clk 0:02:55.4]} 16... Rfd8
{[%clk 0:02:50.5]} 17. Rhe1 {[%clk 0:02:56.4]} 17... Rac8 {[%clk 0:02:50.7]} 18.
Kb1 {[%clk 0:02:55.8]} 18... Bf5+ {[%clk 0:02:47.3]} 19. Ka1 {[%clk 0:02:56.1]}
19... Nb4 {[%clk 0:02:45.9]} 20. Rd2 {[%clk 0:02:32.8]} 20... Nc2+ {[%clk
0:02:44.1]} 21. Rxc2 {[%clk 0:02:34.1]} 21... Bxc2 {[%clk 0:02:45]} 22. Nxd5
{[%clk 0:02:35.7]} 22... Kg7 {[%clk 0:02:41.2]} 23. h4 {[%clk 0:02:17.1]} 23...
Ba4 {[%clk 0:02:31.6]} 24. b3 {[%clk 0:02:01.2]} 24... Bc6 {[%clk 0:02:32.2]}
25. Ne7 {[%clk 0:02:02.4]} 25... Rc7 {[%clk 0:01:54]} 26. d5 {[%clk 0:01:56.7]}
26... Bd7 {[%clk 0:01:54.2]} 27. Re3 {[%clk 0:01:51]} 27... b6 {[%clk 0:01:18]}
28. Kb2 {[%clk 0:01:45.5]} 28... Bc8 {[%clk 0:00:57.5]} 29. Nc6 {[%clk
0:01:43.5]} 29... Rd6 {[%clk 0:00:49.8]} 30. Re8 {[%clk 0:01:41.8]} 30... Bb7
{[%clk 0:00:28]} 31. Ne7 {[%clk 0:01:42.8]} 31... Rdd7 {[%clk 0:00:20.7]} 32.
Rg8+ {[%clk 0:01:42.3]} 32... Kh6 {[%clk 0:00:17.8]} 33. Nf5# {[%clk 0:01:44.2]}
1-0